fUSD/lending_fUSD_20250101
["ID","MTS","AMOUNT","RATE_DAILY","PERIOD"]
[347358418,1735731038011,-157.22953115,0.00010958,2]
[347358419,1735731038021,-500.0,0.00010958,2]
[347358420,1735731038030,-1073.45,0.00010958,2]
[347358421,1735731038039,-896.99,0.00010958,2]
[347358422,1735731038050,-917.12,0.00010958,2]
[347358423,1735731038060,-350.61041521,0.00010958,2]
[347358424,1735731038070,-854.94,0.00010958,2]
[347358425,1735731038079,-500.0,0.00010958,2]
[347358426,1735731038089,-500.0,0.00010958,2]
[347358427,1735731038098,-500.0,0.00010958,2]
[347358428,1735731038108,-500.0,0.00010958,2]
[347358429,1735731038117,-793.39,0.00010958,2]
[347358430,1735731038126,-535.2,0.00010958,2]
[347358431,1735731038136,-785.35,0.00010958,2]
[347358432,1735731038145,-500.0,0.00010958,2]
[347358433,1735731038155,-500.0,0.00010958,2]
[347358434,1735731038164,-821.28,0.00010958,2]
[347358435,1735731038173,-500.0,0.00010958,2]
[347358436,1735731038183,-436.24106682,0.00010958,2]
[347358437,1735731038192,-604.05,0.00010958,2]
[347358438,1735731038201,-761.67,0.00010958,2]
[347358439,1735731038210,-500.0,0.00010958,2]
[347358440,1735731038219,-1392.88,0.00010958,2]
[347358441,1735731038229,-1142.57,0.00010958,2]
[347358442,1735731038239,-500.0,0.00010958,2]
[347358443,1735731038249,-1135.49,0.00010958,2]
[347358444,1735731038259,-778.24,0.00010958,2]
[347358445,1735731038268,-552.51,0.00010958,2]
[347358446,1735731038278,-3959.23,0.00010958,2]
[347358447,1735731038288,-1570.49,0.00010958,2]
[347358448,1735731038298,-500.0,0.00010958,2]
[347358449,1735731038308,-500.0,0.00010958,2]
[347358450,1735731038318,-500.0,0.00010958,2]
[347358451,1735731038328,-675.98,0.00010958,2]
[347358452,1735731038337,-4104.17,0.00010958,2]
[347358453,1735731038347,-500.0,0.00010958,2]
[347358454,1735731038357,-1543.82,0.00010958,2]
[347358455,1735731038366,-500.0,0.00010958,2]
[347358456,1735731038375,-500.0,0.00010958,2]
[347358457,1735731038384,-504.8,0.00010958,2]
[347358458,1735731038394,-500.0,0.00010958,2]
[347358459,1735731038403,-774.27,0.00010958,2]
[347358460,1735731038412,-500.0,0.00010958,2]
[347358461,1735731038422,-500.0,0.00010958,2]
[347358463,1735731038431,-500.0,0.00010958,2]
[347358465,1735731038440,-500.0,0.00010958,2]
[347358467,1735731038449,-1199.47,0.00010958,2]
[347358469,1735731038458,-331.24531348,0.00010958,2]
[347358471,1735731038467,-500.0,0.00010958,2]
[347358473,1735731038477,-500.0,0.00010958,2]
[347358475,1735731038486,-1226.33,0.00010958,2]
[347358477,1735731038495,-1374.35633624,0.00010958,2]
[347358479,1735731038510,-481.32366376,0.00010958,2]
[347358480,1735731038520,-500.0,0.00010958,2]
[347358481,1735731038530,-870.04,0.00010958,2]
[347358482,1735731038539,-1532.89,0.00010958,2]
[347358483,1735731038548,-895.84,0.00010958,2]
[347358484,1735731038558,-619.57,0.00010958,2]
[347358485,1735731038567,-500.0,0.00010958,2]
[347358486,1735731038577,-500.0,0.00010958,2]
[347358487,1735731038586,-707.36,0.00010958,2]
[347358488,1735731038595,-2327.89,0.00010958,2]
[347358489,1735731038608,-1441.28,0.00010958,2]
[347358490,1735731038617,-1006.46,0.00010958,2]
[347358491,1735731038626,-500.0,0.00010958,2]
[347358492,1735731038635,-500.0,0.00010958,2]
[347358493,1735731038646,-500.0,0.00010958,2]
[347358494,1735731038655,-2370.91,0.00010958,2]
[347358495,1735731038664,-500.0,0.00010958,2]
[347358496,1735731038673,-1051.11,0.00010958,2]
[347358497,1735731038682,-500.0,0.00010958,2]
[347358498,1735731038691,-588.87,0.00010958,2]
[347358499,1735731038700,-500.0,0.00010958,2]
[347358500,1735731038709,-593.41,0.00010958,2]
[347358501,1735731038718,-1180.86,0.00010958,2]
[347358502,1735731038727,-1496.47,0.00010958,2]
[347358503,1735731038735,-856.36,0.00010958,2]
[347358504,1735731038744,-505.87,0.00010958,2]
[347358505,1735731038753,-1431.19,0.00010958,2]
[347358506,1735731038762,-584.96,0.00010958,2]
[347358507,1735731038771,-500.0,0.00010958,2]
[347358508,1735731038781,-500.0,0.00010958,2]
[347358509,1735731038790,-500.0,0.00010958,2]
[347358510,1735731038799,-867.45,0.00010958,2]
[347358511,1735731038808,-1672.78,0.00010958,2]
[347358512,1735731038817,-500.0,0.00010958,2]
[347358513,1735731038827,-647.66,0.00010958,2]
[347358514,1735731038836,-542.83,0.00010958,2]
[347358515,1735731038845,-720.18,0.00010958,2]
[347358516,1735731038856,-500.0,0.00010958,2]
[347358517,1735731038865,-500.0,0.00010958,2]
[347358518,1735731038874,-500.0,0.00010958,2]
[347358519,1735731038883,-500.0,0.00010958,2]
[347358520,1735731038892,-2509.78,0.00010958,2]
[347358521,1735731038901,-500.0,0.00010958,2]
[347358522,1735731038910,-1092.59,0.00010958,2]
[347358523,1735731038920,-795.66,0.00010958,2]
[347358524,1735731038930,-1580.01,0.00010958,2]
[347358525,1735731038939,-500.0,0.00010958,2]
[347358526,1735731038949,-2576.17,0.00010958,2]
[347358527,1735731038959,-500.0,0.00010958,2]
[347358528,1735731038967,-957.22,0.00010958,2]
[347358529,1735731038976,-645.96,0.00010958,2]
[347358530,1735731038985,-649.85,0.00010958,2]
[347358531,1735731038994,-500.0,0.00010958,2]
[347358532,1735731039003,-500.0,0.00010958,2]
[347358533,1735731039012,-3937.93,0.00010958,2]
[347358534,1735731039022,-500.0,0.00010958,2]
[347358535,1735731039031,-500.0,0.00010958,2]
[347358536,1735731039042,-1848.57,0.00010958,2]
[347358537,1735731039052,-2028.68,0.00010958,2]
[347358538,1735731039062,-1124.57,0.00010958,2]
[347358539,1735731039071,-500.0,0.00010958,2]
[347358540,1735731039081,-500.0,0.00010958,2]
[347358541,1735731039090,-500.0,0.00010958,2]
[347358542,1735731039099,-1584.16,0.00010958,2]
[347358543,1735731039109,-500.0,0.00010958,2]
[347358544,1735731039117,-659.79,0.00010958,2]
[347358545,1735731039127,-500.0,0.00010958,2]
[347358546,1735731039136,-986.37,0.00010958,2]
[347358547,1735731039145,-500.0,0.00010958,2]
[347358548,1735731039155,-2744.68,0.00010958,2]
[347358549,1735731039164,-500.0,0.00010958,2]
[347358550,1735731039174,-500.0,0.00010958,2]
[347358551,1735731039183,-1099.1,0.00010958,2]
[347358552,1735731039192,-679.11,0.00010958,2]
[347358553,1735731039201,-1815.73,0.00010958,2]
[347358554,1735731039211,-500.0,0.00010958,2]
[347358555,1735731039220,-780.83,0.00010958,2]
[347358556,1735731039229,-486.70291059,0.00010958,2]
[347358557,1735731039238,-4406.77,0.00010958,2]
[347358558,1735731039247,-2565.52,0.00010958,2]
[347358559,1735731039256,-500.0,0.00010958,2]
[347358560,1735731039265,-614.69,0.00010958,2]
[347358561,1735731039274,-500.0,0.00010958,2]
[347358562,1735731039284,-500.0,0.00010958,2]
[347358563,1735731039293,-510.21763033,0.00010958,2]
[347358564,1735731039302,-500.0,0.00010958,2]
[347358565,1735731039311,-2065.58,0.00010958,2]
[347358566,1735731039320,-523.45,0.00010958,2]
[347358567,1735731039329,-910.51,0.00010958,2]
[347358568,1735731039339,-500.0,0.00010958,2]
[347358569,1735731039348,-500.0,0.00010958,2]
[347358570,1735731039357,-685.23,0.00010958,2]
[347358571,1735731039366,-500.0,0.00010958,2]
[347358572,1735731039375,-500.0,0.00010958,2]
[347358573,1735731039384,-847.97,0.00010958,2]
[347358574,1735731039393,-646.0528457,0.00010958,2]
[347358575,1735731039402,-1423.33,0.00010958,2]
[347358576,1735731039411,-751.25,0.00010958,2]
[347358577,1735731039419,-591.12864334,0.00010958,2]
[347358578,1735731039428,-926.68,0.00010958,2]
[347358579,1735731039438,-926.87,0.00010958,2]
[347358580,1735731039447,-2017.92,0.00010958,2]
[347358581,1735731039456,-500.0,0.00010958,2]
[347358582,1735731039466,-632.88,0.00010958,2]
[347358583,1735731039476,-1444.17,0.00010958,2]
[347358584,1735731039485,-500.0,0.00010958,2]
[347358585,1735731039494,-1792.77,0.00010958,2]
[347358586,1735731039503,-1197.38,0.00010958,2]
[347358587,1735731039513,-500.0,0.00010958,2]
[347358588,1735731039522,-500.0,0.00010958,2]
[347358589,1735731039531,-2556.65,0.00010958,2]
[347358590,1735731039540,-500.0,0.00010958,2]
[347358591,1735731039550,-772.37,0.00010958,2]
[347358592,1735731039560,-942.63,0.00010958,2]
[347358593,1735731039569,-500.0,0.00010958,2]
[347358594,1735731039578,-1008.08,0.00010958,2]
[347358595,1735731039588,-617.39,0.00010958,2]
[347358596,1735731039598,-513.09,0.00010958,2]
[347358597,1735731039609,-2846.91,0.00010958,2]
[347358598,1735731039618,-1244.61,0.00010958,2]
[347358599,1735731039628,-1208.75,0.00010958,2]
[347358600,1735731039637,-500.0,0.00010958,2]
[347358601,1735731039646,-757.03,0.00010958,2]
[347358602,1735731039656,-561.33,0.00010958,2]
[347358603,1735731039666,-827.37,0.00010958,2]
[347358604,1735731039675,-500.0,0.00010958,2]
[347358605,1735731039684,-500.0,0.00010958,2]
[347358606,1735731039694,-661.67,0.00010958,2]
[347358607,1735731039703,-500.0,0.00010958,2]
[347358608,1735731039713,-841.32,0.00010958,2]
[347358609,1735731039723,-847.19,0.00010958,2]
[347358610,1735731039733,-500.0,0.00010958,2]
[347358611,1735731039742,-618.0,0.00010958,2]
[347358612,1735731039752,-500.0,0.00010958,2]
[347358613,1735731039762,-500.0,0.00010958,2]
[347358614,1735731039771,-1706.09,0.00010958,2]
[347358615,1735731039781,-710.17,0.00010958,2]
[347358616,1735731039790,-500.0,0.00010958,2]
[347358617,1735731039799,-1623.45,0.00010958,2]
[347358618,1735731039809,-600.85,0.00010958,2]
[347358619,1735731039818,-627.23,0.00010958,2]
[347358620,1735731039828,-578.83,0.00010958,2]
[347358621,1735731039837,-587.39,0.00010958,2]
[347358622,1735731039846,-1813.19,0.00010958,2]
[347358623,1735731039856,-3201.33,0.00010958,2]
[347358624,1735731039866,-500.0,0.00010958,2]
[347358626,1735731039875,-1737.02,0.00010958,2]
[347358627,1735731039884,-1068.15,0.00010958,2]
[347358628,1735731039894,-775.76,0.00010958,2]
[347358629,1735731039902,-500.0,0.00010958,2]
[347358630,1735731039911,-727.98,0.00010958,2]
[347358631,1735731039920,-782.0,0.00010958,2]
[347358632,1735731039930,-500.0,0.00010958,2]
[347358633,1735731039938,-500.0,0.00010958,2]
[347358634,1735731039948,-679.71,0.00010958,2]
[347358635,1735731039957,-500.0,0.00010958,2]
[347358636,1735731039966,-718.11,0.00010958,2]
[347358637,1735731039975,-2322.42,0.00010958,2]
[347358638,1735731039984,-218.86128957,0.00010958,2]
[347358639,1735731039993,-500.0,0.00010958,2]
[347358640,1735731040002,-2097.38,0.00010958,2]
[347358641,1735731040011,-500.0,0.00010958,2]
[347358642,1735731040022,-500.0,0.00010958,2]
[347358643,1735731040031,-500.0,0.00010958,2]
[347358644,1735731040042,-777.94,0.00010958,2]
[347358645,1735731040052,-2865.39,0.00010958,2]
[347358646,1735731040296,-500.0,0.00010958,2]
[347358647,1735731040305,-500.0,0.00010958,2]
[347358648,1735731040314,-500.0,0.00010958,2]
[347358649,1735731040324,-541.28,0.00010958,2]
[347358650,1735731040333,-830.43,0.00010958,2]
[347358651,1735731040342,-1608.14,0.00010958,2]
[347358652,1735731040352,-500.0,0.00010958,2]
[347358653,1735731040362,-2792.26,0.00010958,2]
[347358655,1735731040371,-607.9,0.00010958,2]
[347358657,1735731040380,-2616.08,0.00010958,2]
[347358659,1735731040390,-2238.78,0.00010958,2]
[347358660,1735731040402,-500.0,0.00010958,2]
[347358661,1735731040411,-500.0,0.00010958,2]
[347358662,1735731040420,-500.0,0.00010958,2]
[347358663,1735731040430,-500.0,0.00010958,2]
[347358664,1735731040439,-1793.73,0.00010958,2]
[347358665,1735731040448,-21756.4,0.00010958,2]
[347358666,1735731040458,-500.0,0.00010958,2]
[347358667,1735731040468,-1541.74,0.00010958,2]
[347358668,1735731040477,-594.91,0.00010958,2]
[347358669,1735731040486,-500.0,0.00010958,2]
[347358670,1735731040495,-562.06,0.00010958,2]
[347358671,1735731040504,-696.23,0.00010958,2]
[347358672,1735731040513,-1003.8,0.00010958,2]
[347358673,1735731040522,-1762.83,0.00010958,2]
[347358674,1735731040531,-500.0,0.00010958,2]
[347358675,1735731040540,-615.0,0.00010958,2]
[347358676,1735731040549,-1616.4,0.00010958,2]
[347358677,1735731040558,-876.84,0.00010958,2]
[347358678,1735731040567,-424.67010018,0.00010958,2]
[347358679,1735731040575,-500.0,0.00010958,2]
[347358680,1735731040584,-500.0,0.00010958,2]
[347358681,1735731040593,-1691.63,0.00010958,2]
[347358682,1735731040608,-1133.94,0.00010958,2]
[347358683,1735731040618,-3827.89,0.00010958,2]
[347358684,1735731040627,-500.0,0.00010958,2]
[347358685,1735731040636,-2786.98,0.00010958,2]
[347358686,1735731040646,-3120.49,0.00010958,2]
[347358687,1735731040655,-500.0,0.00010958,2]
[347358688,1735731040664,-542.76,0.00010958,2]
[347358689,1735731040673,-1020.34,0.00010958,2]
[347358690,1735731040682,-500.0,0.00010958,7]
[347358691,1735731040691,-2158.86,0.00010958,2]
[347358692,1735731040699,-1094.24,0.00010958,2]
[347358693,1735731040709,-2812.2,0.00010958,2]
[347358694,1735731040718,-500.0,0.00010958,2]
[347358695,1735731040726,-500.0,0.00010958,2]
[347358696,1735731040736,-500.0,0.00010958,2]
[347358697,1735731040750,-500.0,0.00010958,2]
[347358698,1735731040760,-1381.28,0.00010958,2]
[347358699,1735731040769,-500.0,0.00010958,2]
[347358700,1735731040778,-500.0,0.00010958,2]
[347358701,1735731040787,-500.0,0.00010958,2]
[347358702,1735731040796,-500.0,0.00010958,2]
[347358703,1735731040807,-2015.68,0.00010958,2]
[347358704,1735731040816,-500.0,0.00010958,2]
[347358705,1735731040826,-803.03,0.00010958,2]
[347358706,1735731040835,-1444.0,0.00010958,2]
[347358707,1735731040845,-682.61,0.00010958,2]
[347358708,1735731040855,-500.0,0.00010958,2]
[347358709,1735731040864,-1326.65,0.00010958,2]
[347358710,1735731040874,-1061.08,0.00010958,2]
[347358711,1735731040883,-500.0,0.00010958,2]
[347358712,1735731040892,-500.0,0.00010958,2]
[347358713,1735731040901,-500.0,0.00010958,2]
[347358714,1735731040910,-2155.27,0.00010958,2]
[347358715,1735731040919,-500.0,0.00010958,2]
[347358716,1735731040929,-500.0,0.00010958,2]
[347358717,1735731040938,-500.0,0.00010958,2]
[347358718,1735731040947,-500.0,0.00010958,2]
[347358719,1735731040956,-753.93,0.00010958,2]
[347358720,1735731040965,-500.0,0.00010958,2]
[347358721,1735731040974,-500.0,0.00010958,2]
[347358722,1735731040984,-576.78,0.00010958,2]
[347358723,1735731040993,-2020.35,0.00010958,2]
[347358724,1735731041001,-585.65,0.00010958,2]
[347358725,1735731041011,-500.0,0.00010958,2]
[347358726,1735731041020,-2540.33,0.00010958,2]
[347358727,1735731041029,-2974.47,0.00010958,2]
[347358728,1735731041038,-500.0,0.00010958,2]
[347358729,1735731041048,-500.0,0.00010958,2]
[347358730,1735731041057,-2731.04,0.00010958,2]
[347358731,1735731041066,-500.0,0.00010958,2]
[347358732,1735731041075,-500.0,0.00010958,2]
[347358733,1735731041084,-1279.89,0.00010958,2]
[347358734,1735731041093,-688.22,0.00010958,2]
[347358735,1735731041104,-5010.84,0.00010958,2]
[347358736,1735731041113,-847.97,0.00010958,2]
[347358737,1735731041122,-2081.38,0.00010958,2]
[347358738,1735731041131,-500.0,0.00010958,2]
[347358739,1735731041141,-602.76,0.00010958,2]
[347358740,1735731041150,-1300.97,0.00010958,2]
[347358741,1735731041159,-500.0,0.00010958,2]
[347358742,1735731041169,-1886.37,0.00010958,2]
[347358743,1735731041178,-500.0,0.00010958,2]
[347358744,1735731041187,-2651.28,0.00010958,2]
[347358745,1735731041197,-2641.4,0.00010958,2]
[347358746,1735731041206,-526.89,0.00010958,2]
[347358747,1735731041215,-500.0,0.00010958,2]
[347358748,1735731041224,-4249.99,0.00010958,2]
[347358749,1735731041234,-746.97,0.00010958,2]
[347358750,1735731041243,-1576.37,0.00010958,2]
[347358751,1735731041253,-6054.78893419,0.00010958,2]
[347358752,1735731041278,-418.19999998,0.00010958,2]
[347358753,1735731041289,-2612.45106583,0.00010958,2]
[347358754,1735731041299,-1024.78,0.00010958,2]
[347358755,1735731041308,-515.37,0.00010958,2]
[347358756,1735731041318,-2089.01,0.00010958,2]
[347358757,1735731041327,-1035.61,0.00010958,2]
[347358758,1735731041337,-661.49,0.00010958,2]
[347358759,1735731041347,-2872.3,0.00010958,2]
[347358760,1735731041358,-1704.07,0.00010958,2]
[347358761,1735731041367,-716.51,0.00010958,2]
[347358762,1735731041377,-867.49,0.00010958,2]
[347358763,1735731041386,-883.06,0.00010958,2]
[347358764,1735731041396,-1699.4,0.00010958,2]
[347358765,1735731041406,-1629.75,0.00010958,2]
[347358766,1735731041416,-500.0,0.00010958,2]
[347358767,1735731041426,-563.99,0.00010958,2]
[347358768,1735731041435,-500.0,0.00010958,2]
[347358769,1735731041445,-500.0,0.00010958,2]
[347358770,1735731041455,-933.89,0.00010958,2]
[347358771,1735731041465,-943.59,0.00010958,2]
[347358772,1735731041475,-2353.01,0.00010958,2]
[347358773,1735731041484,-14116.41,0.00010958,2]
[347358774,1735731041494,-500.0,0.00010958,2]
[347358775,1735731041504,-500.0,0.00010958,2]
[347358776,1735731041513,-2804.82,0.00010958,2]
[347358777,1735731041522,-2681.19,0.00010958,2]
[347358778,1735731041532,-500.0,0.00010958,2]
[347358779,1735731041541,-605.08746106,0.00010958,2]
[347358780,1735731041551,-1131.7,0.00010958,2]
[347358781,1735731041561,-1668.14,0.00010958,2]
[347358782,1735731041571,-626.92,0.00010958,2]
[347358783,1735731041580,-2416.19,0.00010958,2]
[347358784,1735731041591,-860.8,0.00010958,2]
[347358785,1735731041602,-902.88,0.00010958,2]
[347358786,1735731041612,-1098.0,0.00010958,2]
[347358787,1735731041622,-1182.1,0.00010958,2]
[347358788,1735731041631,-3439.19,0.00010958,2]
[347358789,1735731041640,-816.44,0.00010958,2]
[347358790,1735731041650,-1388.47,0.00010958,2]
[347358791,1735731041659,-500.0,0.00010958,2]
[347358792,1735731041668,-1649.8,0.00010958,2]
[347358793,1735731041677,-17388.42,0.00010958,2]
[347358794,1735731041687,-2700.0,0.00010958,2]
[347358795,1735731041696,-500.0,0.00010958,2]
[347358796,1735731041705,-500.0,0.00010958,2]
[347358797,1735731041715,-1434.77,0.00010958,2]
[347358798,1735731041724,-736.47,0.00010958,2]
[347358799,1735731041734,-500.0,0.00010958,2]
[347358800,1735731041743,-2928.76,0.00010958,2]
[347358801,1735731041753,-500.0,0.00010958,2]
[347358802,1735731041764,-500.0,0.00010958,2]
[347358803,1735731041773,-500.0,0.00010958,2]
[347358804,1735731041782,-1560.74,0.00010958,2]
[347358805,1735731041791,-1530.53,0.00010958,2]
[347358806,1735731041801,-1443.69,0.00010958,2]
[347358807,1735731041811,-500.0,0.00010958,2]
[347358808,1735731041820,-2152.38,0.00010958,2]
[347358809,1735731041830,-698.73,0.00010958,2]
[347358810,1735731041839,-558.64,0.00010958,2]
[347358811,1735731041848,-633.02,0.00010958,2]
[347358812,1735731041860,-997.69,0.00010958,2]
[347358813,1735731041869,-1244.53,0.00010958,2]
[347358814,1735731041879,-2042.46,0.00010958,2]
[347358815,1735731041888,-1368.21,0.00010958,2]
[347358816,1735731041897,-585.62,0.00010958,2]
[347358817,1735731041906,-933.33,0.00010958,2]
[347358818,1735731041915,-1763.28,0.00010958,2]
[347358819,1735731041924,-1481.07,0.00010958,2]
[347358820,1735731041933,-809.25,0.00010958,2]
[347358821,1735731041942,-570.49,0.00010958,2]
[347358822,1735731041951,-4920.39,0.00010958,2]
[347358823,1735731041960,-500.0,0.00010958,2]
[347358824,1735731041969,-500.0,0.00010958,2]
[347358825,1735731041978,-2179.03,0.00010958,2]
[347358826,1735731041987,-1462.37,0.00010958,2]
[347358827,1735731041996,-500.0,0.00010958,2]
[347358828,1735731042005,-1309.06,0.00010958,2]
[347358829,1735731042014,-931.72,0.00010958,2]
[347358830,1735731042023,-500.0,0.00010958,2]
[347358831,1735731042032,-500.0,0.00010958,2]
[347358832,1735731042041,-500.0,0.00010958,2]
[347358833,1735731042050,-520.69,0.00010958,2]
[347358834,1735731042059,-1597.68,0.00010958,2]
[347358835,1735731042068,-500.0,0.00010958,2]
[347358836,1735731042077,-3031.61,0.00010958,2]
[347358837,1735731042087,-1277.11,0.00010958,2]
[347358838,1735731042096,-2683.27,0.00010958,2]
[347358839,1735731042106,-500.0,0.00010958,2]
[347358840,1735731042115,-451.7588179,0.00010958,2]
[347358841,1735731042124,-1018.4,0.00010958,2]
[347358842,1735731042134,-640.79,0.00010958,2]
[347358843,1735731042143,-1189.58,0.00010958,2]
[347358844,1735731042152,-727.68,0.00010958,2]
[347358845,1735731042161,-500.0,0.00010958,2]
[347358846,1735731042171,-4693.17,0.00010958,2]
[347358847,1735731042180,-555.61,0.00010958,2]
[347358848,1735731042189,-500.0,0.00010958,2]
[347358849,1735731042198,-500.0,0.00010958,2]
[347358850,1735731042208,-1865.46,0.00010958,2]
[347358851,1735731042217,-500.0,0.00010958,2]
[347358852,1735731042226,-1591.85,0.00010958,2]
[347358853,1735731042236,-500.0,0.00010958,2]
[347358854,1735731042246,-959.82,0.00010958,2]
[347358855,1735731042255,-625.79,0.00010958,2]
[347358856,1735731042264,-1705.8,0.00010958,2]
[347358857,1735731042273,-1810.56,0.00010958,2]
[347358858,1735731042283,-320.84383458,0.00010958,2]
[347358859,1735731042292,-500.0,0.00010958,2]
[347358860,1735731042301,-1144.14,0.00010958,2]
[347358861,1735731042310,-500.0,0.00010958,2]
[347358862,1735731042319,-2244.74,0.00010958,2]
[347358863,1735731042328,-500.0,0.00010958,2]
[347358864,1735731042337,-625.41,0.00010958,2]
[347358865,1735731042346,-500.0,0.00010958,2]
[347358866,1735731042357,-4152.32,0.00010958,2]
[347358867,1735731042367,-1344.94,0.00010958,2]
[347358868,1735731042378,-500.0,0.00010958,2]
[347358869,1735731042387,-1726.36,0.00010958,2]
[347358870,1735731042397,-500.0,0.00010958,2]
[347358871,1735731042406,-1967.49,0.00010958,2]
[347358872,1735731042417,-1188.79,0.00010958,2]
[347358873,1735731042426,-500.0,0.00010958,2]
[347358874,1735731042436,-287.73608368,0.00010958,2]
[347358875,1735731042445,-564.63,0.00010958,2]
[347358876,1735731042454,-500.0,0.00010958,2]
[347358877,1735731042463,-543.44,0.00010958,2]
[347358878,1735731042472,-500.0,0.00010958,2]
[347358879,1735731042481,-1334.35,0.00010958,2]
[347358880,1735731042490,-4201.24,0.00010958,2]
[347358881,1735731042499,-2639.91,0.00010958,2]
[347358882,1735731042508,-500.0,0.00010958,2]
[347358883,1735731042517,-500.0,0.00010958,2]
[347358884,1735731042525,-569.16,0.00010958,2]
[347358885,1735731042534,-588.35,0.00010958,2]
[347358886,1735731042543,-2917.89,0.00010958,2]
[347358887,1735731042552,-628.05,0.00010958,2]
[347358888,1735731042561,-2309.96,0.00010958,2]
[347358889,1735731042570,-500.0,0.00010958,2]
[347358890,1735731042579,-580.64,0.00010958,2]
[347358891,1735731042590,-1139.79,0.00010958,2]
[347358892,1735731042600,-500.0,0.00010958,2]
[347358893,1735731042612,-652.93,0.00010958,2]
[347358894,1735731042621,-1773.03,0.00010958,2]
[347358895,1735731042630,-500.0,0.00010958,2]
[347358896,1735731042639,-2151.51,0.00010958,2]
[347358897,1735731042650,-4959.96,0.00010958,2]
[347358898,1735731042659,-8503.85,0.00010958,2]
[347358899,1735731042668,-1844.55,0.00010958,2]
[347358900,1735731042678,-2786.81,0.00010958,2]
[347358901,1735731042687,-423.73554934,0.00010958,2]
[347358902,1735731042696,-500.0,0.00010958,2]
[347358903,1735731042705,-2053.18,0.00010958,2]
[347358904,1735731042713,-500.0,0.00010958,2]
[347358905,1735731042722,-500.0,0.00010958,2]
[347358906,1735731042731,-500.0,0.00010958,2]
[347358907,1735731042740,-589.2,0.00010958,2]
[347358908,1735731042749,-2989.7,0.00010958,2]
[347358909,1735731042759,-1632.75,0.00010958,2]
[347358910,1735731042768,-500.0,0.00010958,2]
[347358911,1735731042778,-500.0,0.00010958,2]
[347358912,1735731042787,-2589.85,0.00010958,2]
[347358913,1735731042796,-500.0,0.00010958,2]
[347358914,1735731042804,-722.02,0.00010958,2]
[347358915,1735731042814,-3618.43,0.00010958,2]
[347358916,1735731042822,-3087.42,0.00010958,2]
[347358917,1735731042831,-1309.56,0.00010958,2]
[347358918,1735731042840,-500.0,0.00010958,2]
[347358919,1735731042849,-782.83,0.00010958,2]
[347358920,1735731042860,-764.38,0.00010958,2]
[347358921,1735731042869,-599.08,0.00010958,2]
[347358922,1735731042878,-1585.01,0.00010958,2]
[347358923,1735731042888,-500.0,0.00010958,2]
[347358924,1735731042897,-2078.09,0.00010958,2]
[347358925,1735731042907,-3658.91,0.00010958,2]
[347358926,1735731042916,-3745.66,0.00010958,2]
[347358927,1735731042925,-500.0,0.00010958,2]
[347358929,1735731042934,-500.0,0.00010958,2]
[347358930,1735731042944,-1336.27,0.00010958,2]
[347358931,1735731042953,-1099.28,0.00010958,2]